bitfinex/quotes_SOLUSD_20240716
["timestamp","ask_amount","ask_price","bid_price","bid_amount"]
[1721140296582,6.4091,156.03,155.99,6.4105]
[1721140297693,6.4091,156.03,155.98,22.4381]
[1721140297998,0.34,156.06,156.0,6.4102]
[1721140298300,0.34,156.06,156.02,6.4091]
[1721140298516,0.34,156.06,156.03,0.45405461]
[1721140298805,0.34,156.06,155.99,6.4106]
[1721140299191,0.34,156.06,155.97,51.6902]
[1721140299381,0.34,156.06,155.99,6.4103]
[1721140299586,0.34,156.06,156.0,6.4101]
[1721140299779,0.34,156.06,155.99,6.4105]
[1721140300103,0.34,156.06,155.97,38.8313]
[1721140300284,0.34,156.06,155.97,32.4202]
[1721140300777,45.34,156.07,155.97,38.8315]
[1721140300996,0.17,156.05,155.98,6.411]
[1721140301197,45.34,156.07,155.98,6.4107]
[1721140301400,45.34,156.07,155.97,32.4202]
[1721140301580,45.34,156.07,155.97,38.8316]
[1721140301991,6.4095,156.02,155.97,38.8313]
[1721140302392,6.4099,156.01,155.97,38.8313]
[1721140302600,6.4099,156.01,155.97,32.4202]
[1721140303104,6.4099,156.01,155.97,38.8316]
[1721140303402,0.34,156.03,155.97,16.3922]
[1721140303576,0.34,156.03,155.94,16.0312]
[1721140304406,6.4102,156.0,155.96,6.4118]
[1721140304996,6.5799,156.01,155.97,6.4114]
[1721140305202,6.4099,156.01,155.98,1.01465306]
[1721140305404,6.5794,156.03,155.99,1.01458801]
[1721140305701,6.4094,156.03,155.98,22.438]
[1721140306015,0.17,156.04,155.97,6.4114]
[1721140306016,6.4098,156.01,155.97,6.4114]
[1721140306189,6.4099,156.01,155.96,6.4115]
[1721140306395,6.4094,156.02,155.97,16.0284]
[1721140307109,6.41,156.01,155.97,16.0284]
[1721140307608,6.4095,156.02,155.97,16.0284]
[1721140307807,6.4095,156.02,155.98,6.4108]
[1721140308518,6.4091,156.03,155.99,6.4105]
[1721140309596,0.17,156.04,155.99,6.4105]
[1721140309901,37.3716,156.11,155.99,19.27]
[1721140310089,21.3567,156.11,156.01,16.0241]
[1721140310295,6.4083,156.05,156.01,22.4337]
[1721140310596,6.4079,156.06,156.01,16.0241]
[1721140310792,16.0169,156.09,156.0,66.8034]
[1721140311028,6.4088,156.04,156.0,60.3936]
[1721140311219,6.4091,156.03,156.0,15.3936]
[1721140311583,6.4082,156.05,156.01,6.4097]
[1721140312004,6.5779,156.06,156.02,6.4094]
[1721140312887,6.4082,156.05,156.01,6.4097]
[1721140313403,6.4088,156.04,156.0,37.829]
[1721140314109,0.17,156.06,155.96,16.0028]
[1721140314310,6.4091,156.03,155.99,6.4103]
[1721140314503,6.4089,156.04,156.0,6.4102]
[1721140314709,0.17,156.06,155.99,16.0263]
[1721140315012,0.17,156.06,156.02,6.4094]
[1721140315308,6.5781,156.06,156.02,6.4094]
[1721140315616,6.5781,156.06,156.01,22.4341]
[1721140315617,0.17,156.06,156.01,22.4341]
[1721140315813,16.0168,156.09,156.03,6.409]
[1721140316012,6.69842871,156.12,156.03,22.4311]
[1721140316013,15.0325,156.11,156.03,22.4311]
[1721140316213,6.4075,156.07,156.03,22.431]
[1721140317011,22.022,156.15,156.03,6.4848]
[1721140317318,22.022,156.15,156.05,22.4278]
[1721140317513,6.4062,156.1,156.05,22.4278]
[1721140317903,6.4058,156.11,156.06,6.4077]
[1721140318113,6.4054,156.12,156.07,6.4071]
[1721140318419,6.4058,156.11,156.07,6.4071]
[1721140319121,6.4058,156.11,156.06,6.4076]
[1721140319295,16.0118,156.14,156.05,22.4278]
[1721140319501,0.34,156.13,156.05,22.4278]
[1721140319711,0.34,156.13,156.05,16.0198]
[1721140319910,6.4066,156.09,156.05,22.4279]
[1721140320098,0.34,156.13,156.04,16.4028]
[1721140320298,6.4066,156.09,156.04,16.4028]
[1721140320515,0.17,156.08,156.04,16.4028]
[1721140320700,0.17,156.08,156.01,22.4336]
[1721140320905,6.4074,156.07,156.02,6.409]
[1721140321104,6.577,156.08,156.03,16.022]
[1721140321506,6.5766,156.09,156.03,16.022]
[1721140321802,6.5766,156.09,156.04,1.27029715]
[1721140322006,6.4069,156.08,156.04,6.4085]
[1721140322209,6.5766,156.09,156.05,6.408]
[1721140322519,16.0129,156.13,156.05,16.02]
[1721140322722,0.17,156.12,156.03,51.3148]
[1721140322911,16.0098,156.16,156.03,51.3148]
[1721140322912,16.0098,156.16,156.04,84.27]
[1721140323116,6.4056,156.12,156.08,6.4066]
[1721140323315,6.4056,156.12,156.09,1.27971955]
[1721140323527,6.4058,156.11,156.07,45.1677]
[1721140323827,6.4054,156.12,156.07,45.1677]
[1721140324134,6.4053,156.12,156.08,6.4067]
[1721140324435,16.0098,156.16,156.07,38.7605]
[1721140324436,6.406,156.11,156.07,38.7605]
[1721140324596,6.4062,156.1,156.07,22.7429]
[1721140324800,6.4067,156.09,156.05,6.4081]
[1721140325001,6.4061,156.1,156.06,6.4077]
[1721140325718,6.4067,156.09,156.05,22.4281]
[1721140325907,6.4073,156.07,156.03,22.5591]
[1721140326326,6.407,156.08,156.04,6.4085]
[1721140326529,0.17,156.11,156.04,6.4085]
[1721140326709,6.4067,156.09,156.04,6.4085]
[1721140326913,6.4067,156.09,156.05,6.4081]
[1721140327230,6.7461,156.11,156.06,6.4075]
[1721140327414,6.4063,156.1,156.05,6.4081]
[1721140327616,0.34,156.11,156.07,6.407]
[1721140327837,6.4056,156.12,156.06,16.0186]
[1721140328024,6.4049,156.13,156.08,6.4068]
[1721140328557,6.4049,156.13,156.09,6.4064]
[1721140328713,29.18429481,156.19,156.03,73.8738]
[1721140329030,6.4038,156.16,156.12,16.0127]
[1721140329228,6.4041,156.15,156.11,22.2805]
[1721140329435,16.0057,156.2,156.12,7.68609427]
[1721140329625,6.4033,156.17,156.12,7.68609427]
[1721140329813,6.4043,156.15,156.11,31.8891]
[1721140330328,6.4037,156.16,156.11,38.2947]
[1721140330534,6.4037,156.16,156.11,31.8891]
[1721140331033,0.17,156.17,156.11,31.8891]
[1721140331200,29.04083795,156.23,156.13,16.0116]
[1721140331201,45.04313795,156.23,156.13,16.0116]
[1721140331715,6.4025,156.19,156.14,6.73141021]
[1721140331905,16.0046,156.21,156.13,16.0116]
[1721140332106,6.4033,156.17,156.13,16.0116]
[1721140332326,6.4033,156.17,156.11,22.1715]
[1721140332327,16.0046,156.21,156.11,28.5771]
[1721140332526,6.4037,156.16,156.11,28.5771]
[1721140332807,6.5733,156.17,156.12,6.4051]
[1721140333235,29.04083795,156.23,156.12,16.0127]
[1721140333411,22.3403,156.23,156.11,73.469]
[1721140333611,6.4024,156.2,156.15,6.404]
[1721140334222,16.1069,156.23,156.12,6.4052]
[1721140334223,6.4035,156.17,156.12,6.4052]
[1721140334425,6.4041,156.15,156.11,38.1852]
[1721140334615,16.1069,156.23,156.11,38.1852]
[1721140334616,6.4045,156.14,156.11,22.1715]
[1721140334823,6.4039,156.16,156.11,28.5772]
[1721140335020,0.34,156.15,156.11,28.5772]
[1721140335225,6.4033,156.17,156.12,6.4052]
[1721140335520,6.5738,156.16,156.11,28.5769]
[1721140336015,6.4032,156.17,156.13,6.4047]
[1721140336338,6.5729,156.18,156.13,6.4048]
[1721140336717,6.4015,156.22,156.14,45.0]
[1721140336918,6.4015,156.22,156.17,6.4029]
[1721140337326,15.9998,156.26,156.18,0.81575946]
[1721140337538,16.0015,156.24,156.16,16.0083]
[1721140337818,16.0015,156.24,156.17,1.28021655]
[1721140338327,16.0015,156.24,156.13,80.2816]
[1721140338636,6.4027,156.19,156.15,6.404]
[1721140338837,0.17,156.23,156.17,6.4031]
[1721140339142,6.4012,156.22,156.18,1.28021124]
[1721140339437,6.4012,156.22,156.18,7.68291124]
[1721140339649,6.4012,156.22,156.18,1.28021124]
[1721140340940,6.4008,156.23,156.18,7.68291124]
[1721140341115,15.9954,156.3,156.2,16.005]
[1721140341320,6.3999,156.26,156.21,7.68152523]
[1721140341517,6.4,156.25,156.21,1.27992523]
[1721140341758,6.4005,156.24,156.2,16.005]
[1721140341935,6.4008,156.23,156.2,16.005]
[1721140342150,6.4012,156.22,156.19,6.4324]
[1721140342333,15.9996,156.26,156.18,15.5125]
[1721140342527,6.4017,156.21,156.18,15.5125]
[1721140342724,0.34,156.25,156.18,15.5125]
[1721140342922,0.34,156.25,156.15,6.3944]
[1721140343245,6.4015,156.22,156.17,6.4032]
[1721140343419,6.4015,156.22,156.16,16.0086]
[1721140343616,6.7409,156.23,156.18,16.0067]
[1721140343829,6.4012,156.22,156.18,16.0067]
[1721140344021,0.34,156.23,156.16,6.4036]
[1721140344221,6.4019,156.21,156.16,6.4035]
[1721140344423,0.34,156.24,156.16,16.0087]
[1721140344743,6.4021,156.2,156.16,22.4123]
[1721140345048,0.34,156.24,156.17,7.68346778]
[1721140345049,6.4017,156.21,156.17,7.68346778]
[1721140345231,6.4013,156.22,156.18,1.28032748]
[1721140345554,6.4028,156.18,156.15,6.3944]
[1721140345752,0.17,156.21,156.15,6.3944]
[1721140345753,6.4025,156.19,156.15,6.3944]
[1721140345927,0.17,156.21,156.14,15.7554]
[1721140345928,6.4033,156.17,156.14,15.7554]
[1721140346244,6.4039,156.16,156.12,6.4052]
[1721140346446,16.0068,156.19,156.1,31.3098]
[1721140346746,45.0,156.18,156.1,31.3098]
[1721140346949,6.4046,156.14,156.1,37.7158]
[1721140347144,6.4041,156.15,156.1,37.7156]
[1721140347327,0.17,156.16,156.1,37.7156]
[1721140347867,6.405,156.13,156.08,6.4068]
[1721140348154,6.4056,156.12,156.07,22.2885]
[1721140348326,6.4047,156.14,156.09,22.4222]
[1721140348535,6.4053,156.12,156.08,6.4069]
[1721140348723,0.34,156.13,156.09,6.4064]
[1721140349643,6.745,156.13,156.08,22.4234]
[1721140349848,6.4053,156.12,156.08,16.0166]
[1721140350222,6.7449,156.13,156.08,22.4234]
[1721140350642,6.7449,156.13,156.09,6.4064]
[1721140350956,6.4045,156.14,156.09,6.4064]
[1721140351125,6.4049,156.13,156.09,6.4064]
[1721140351331,6.4045,156.14,156.1,6.406]
[1721140351551,6.4045,156.14,156.09,6.4064]
[1721140351749,6.7441,156.15,156.1,16.619593]
[1721140351929,0.34,156.15,156.11,6.4054]
[1721140352130,16.0054,156.2,156.12,16.0126]
[1721140352349,6.4032,156.18,156.13,6.4047]
[1721140352556,6.4033,156.17,156.14,0.38362676]
[1721140352730,6.4033,156.17,156.12,22.4177]
[1721140352930,6.4042,156.15,156.1,6.4058]
[1721140353132,16.0054,156.2,156.1,6.4058]
[1721140353133,6.4045,156.14,156.1,6.4058]
[1721140353433,16.0081,156.18,156.09,16.016]
[1721140353654,0.17,156.17,156.09,16.016]
[1721140353859,0.34,156.17,156.09,16.016]
[1721140354153,6.4049,156.13,156.09,22.4224]
[1721140354456,6.4062,156.1,156.07,6.2707]
[1721140354641,6.4058,156.11,156.07,6.2707]
[1721140354948,0.34,156.12,156.06,39.0887]
[1721140355146,6.4073,156.08,156.03,28.5121]
[1721140355327,6.4073,156.08,156.04,6.4083]
[1721140355530,6.4066,156.09,156.04,6.4083]
[1721140355760,6.5762,156.1,156.06,6.4077]
[1721140355938,6.4057,156.11,156.07,6.4073]
[1721140356134,0.17,156.12,156.05,16.0198]
[1721140356854,0.17,156.12,156.05,22.4277]
[1721140357226,6.4066,156.09,156.05,22.4277]
[1721140357451,0.17,156.12,156.05,16.0198]
[1721140357649,6.4064,156.1,156.06,6.4075]
[1721140357853,6.5768,156.09,156.05,16.0198]
[1721140358464,6.4078,156.06,156.02,38.1252]
[1721140358764,6.4074,156.07,156.03,6.4088]
[1721140358938,6.577,156.08,156.03,6.4088]
[1721140359255,0.17,156.07,156.04,17.30228305]
[1721140359550,6.5772,156.08,156.04,16.0208]
[1721140359851,6.5766,156.09,156.04,16.0208]
[1721140360034,6.5766,156.09,156.04,22.4292]
[1721140360231,6.5766,156.09,156.02,15.6933]
[1721140360232,0.17,156.09,156.02,15.6933]
[1721140360438,0.34,156.09,156.02,22.1025]
[1721140360740,0.34,156.09,156.03,6.4089]
[1721140360923,0.34,156.09,156.04,6.4085]
[1721140361341,0.34,156.09,156.05,1.27788539]
[1721140361551,0.34,156.09,156.03,22.4311]
[1721140361735,0.34,156.09,156.03,16.0222]
[1721140363154,0.34,156.09,156.0,16.025]
[1721140363357,0.34,156.09,156.0,22.4352]
[1721140363657,0.17,156.08,155.99,13.0584]
[1721140363953,6.4086,156.04,155.99,13.0584]
[1721140364252,6.4078,156.06,156.01,6.4094]
[1721140364444,6.4078,156.06,156.01,6.4097]
[1721140364751,6.4082,156.05,156.01,6.4097]
[1721140364953,0.34,156.07,156.02,16.0229]
[1721140365258,6.7476,156.07,156.03,0.7346969]
[1721140365431,6.407,156.08,156.04,6.4084]
[1721140365835,0.34,156.09,156.02,16.0229]
[1721140366038,6.7466,156.09,156.04,6.4083]
[1721140366363,6.407,156.08,156.04,6.4083]
[1721140367054,6.5765,156.09,156.04,6.4083]
[1721140367239,6.4065,156.09,156.05,6.4081]
[1721140367436,6.4071,156.08,156.04,22.4296]
[1721140367642,16.0136,156.12,156.03,6.4089]
[1721140367848,6.4078,156.06,156.01,16.0239]
[1721140368161,6.4078,156.06,156.01,22.4336]
[1721140368334,0.17,156.07,156.0,6.4102]
[1721140368534,6.4082,156.05,156.0,6.4102]
[1721140368850,6.4086,156.04,156.0,6.4102]
[1721140369664,6.4086,156.04,155.99,6.6481]
[1721140369665,6.4091,156.03,155.99,13.0586]
[1721140369958,6.4093,156.03,155.98,38.569]
[1721140370164,6.4095,156.02,155.98,16.027]
[1721140370542,0.34,156.04,155.96,6.4118]
[1721140370743,45.34,156.05,155.96,6.4118]
[1721140370952,6.4099,156.01,155.97,6.4112]
[1721140371153,6.5795,156.02,155.98,6.411]
[1721140371347,0.17,156.03,155.99,1.28197148]
[1721140371557,6.5791,156.03,155.99,1.28197148]
[1721140371751,6.4091,156.03,155.99,1.28197148]
[1721140371947,6.4098,156.01,155.97,22.4398]
[1721140372152,6.4095,156.02,155.97,16.0284]
[1721140372364,6.5798,156.01,155.97,22.4396]
[1721140372662,6.4095,156.02,155.98,1.28198835]
[1721140372847,0.17,156.01,155.94,15.7955]
[1721140373052,0.17,156.01,155.95,16.0304]
[1721140373266,6.4112,155.98,155.94,15.7955]
[1721140373463,6.4112,155.98,155.94,22.2082]
[1721140374648,6.4112,155.98,155.94,6.4127]
[1721140375258,0.17,155.99,155.94,16.0308]
[1721140375459,6.4103,156.0,155.94,16.0308]
[1721140375660,6.4103,156.0,155.96,6.4117]
[1721140376256,6.5799,156.01,155.97,6.4114]
[1721140376465,0.17,156.0,155.97,6.4114]
[1721140376661,6.7503,156.0,155.96,6.4117]
[1721140376850,6.4106,155.99,155.95,6.4121]
[1721140377347,6.411,155.98,155.94,22.4434]
[1721140377557,0.34,156.0,155.94,16.0308]
[1721140377973,6.4113,155.98,155.94,16.0308]
[1721140378344,0.17,155.97,155.92,6.4134]
[1721140378548,6.4119,155.96,155.92,6.4134]
[1721140378748,6.4116,155.97,155.93,6.4129]
[1721140378949,0.17,155.98,155.95,6.412]
[1721140379151,0.17,155.98,155.93,16.0322]
[1721140379152,6.5811,155.98,155.94,6.4126]
[1721140379866,0.17,155.98,155.94,6.4126]
[1721140380173,6.4115,155.97,155.93,22.4452]
[1721140380754,6.5811,155.98,155.94,6.4126]
[1721140381289,0.17,155.98,155.93,22.4452]
[1721140381572,6.5812,155.98,155.94,6.4125]
[1721140381975,6.5812,155.98,155.93,22.4452]
[1721140382273,6.4115,155.97,155.93,22.4452]
[1721140382493,0.17,155.98,155.94,6.4125]
[1721140382680,32.6037,156.02,155.95,6.4119]
[1721140382973,6.4116,155.97,155.93,22.445]
[1721140383169,6.4112,155.98,155.94,6.4126]
[1721140383352,6.4106,155.99,155.95,6.412]
[1721140383553,6.4108,155.99,155.93,16.0322]
[1721140383753,32.6037,156.02,155.94,6.4125]
[1721140383754,6.4113,155.98,155.94,6.4125]
[1721140383954,6.5813,155.98,155.94,6.4125]
[1721140384155,0.17,155.99,155.95,16.0304]
[1721140384467,0.17,156.0,155.97,16.0283]
[1721140384653,0.17,156.0,155.97,22.4395]
[1721140384875,16.0212,156.05,155.97,16.0283]
[1721140385185,6.4099,156.01,155.97,22.4396]
[1721140385480,16.0212,156.05,155.98,6.411]
[1721140385681,6.4095,156.02,155.98,6.411]
[1721140386566,16.0212,156.05,155.94,16.0312]
[1721140386775,6.4105,156.0,155.95,6.4119]
[1721140386969,16.0212,156.05,155.94,16.0312]
[1721140386970,16.023,156.03,155.94,22.4439]
[1721140387278,6.4115,155.97,155.94,16.0312]
[1721140388171,6.4115,155.97,155.93,6.413]
[1721140388883,6.7512,155.98,155.93,6.413]
[1721140389178,0.34,155.98,155.95,6.4122]
[1721140390285,0.34,155.98,155.96,1.039345]
[1721140390658,6.7511,155.98,155.93,16.0322]
[1721140390860,0.34,155.98,155.91,6.1928]
[1721140391273,6.4122,155.96,155.91,12.6066]
[1721140391589,0.17,155.95,155.91,12.6066]
[1721140391957,0.17,155.95,155.92,16.0333]
[1721140392157,6.5816,155.97,155.92,22.4467]
[1721140392158,0.17,155.96,155.92,22.4467]
[1721140392356,0.17,155.96,155.93,6.413]
[1721140392775,6.5819,155.96,155.92,16.0333]
[1721140393475,6.5819,155.96,155.91,6.4135]
[1721140393476,6.4123,155.95,155.91,6.4135]
[1721140393659,0.17,155.94,155.91,6.4135]
[1721140393860,6.583,155.94,155.9,22.7187]
[1721140394194,0.17,155.94,155.9,16.3046]
[1721140394358,6.7528,155.94,155.9,6.4142]
[1721140394559,6.5828,155.94,155.9,6.4142]
[1721140394972,0.17,155.94,155.91,16.0345]
[1721140395386,0.34,155.95,155.91,22.4483]
[1721140395775,0.34,155.95,155.93,6.4129]
[1721140395963,0.34,155.96,155.93,6.4129]
[1721140396269,0.34,155.96,155.94,7.6946492]
[1721140396466,6.4104,156.0,155.95,16.0303]
[1721140396685,6.4104,156.0,155.96,1.28208476]
[1721140396887,6.4106,155.99,155.96,1.28208476]
[1721140397097,6.4112,155.98,155.94,6.4126]
[1721140397284,6.4112,155.98,155.95,1.28227162]
[1721140397480,6.4106,155.99,155.95,6.4122]
[1721140397784,6.4103,156.0,155.96,6.4118]
[1721140397961,15.1194,156.03,155.94,16.0314]
[1721140398379,31.1423,156.03,155.94,16.0314]
[1721140398595,6.4109,155.99,155.95,6.92438977]
[1721140398784,6.4115,155.97,155.94,16.0314]
[1721140399101,31.1423,156.03,155.95,1.28127222]
[1721140399264,6.4107,155.99,155.96,1.28119006]
[1721140399466,6.751,155.98,155.94,22.4439]
[1721140399787,6.4131,155.94,155.89,22.2408]
[1721140400102,6.5834,155.93,155.89,22.2408]
[1721140400383,0.17,155.92,155.88,22.4522]
[1721140400764,0.17,155.92,155.89,6.4147]
[1721140401071,6.5835,155.92,155.88,22.4522]
[1721140401270,0.17,155.92,155.85,31.8666]
[1721140401667,6.4149,155.89,155.85,38.2829]
[1721140401869,0.34,155.88,155.86,6.4159]
[1721140402082,0.17,155.88,155.86,6.4159]
[1721140402387,0.17,155.89,155.86,6.4159]
[1721140402599,0.34,155.89,155.86,6.4159]
[1721140402899,0.34,155.89,155.85,31.8666]
[1721140402900,6.4152,155.88,155.85,31.8666]
[1721140403199,0.17,155.87,155.84,6.4168]
[1721140403409,0.17,155.88,155.84,6.4168]
[1721140403619,6.7548,155.89,155.85,6.4163]
[1721140403782,0.34,155.89,155.85,6.4163]
[1721140404295,0.34,155.89,155.86,7.53614967]
[1721140404508,0.34,155.9,155.87,6.4154]
[1721140404673,6.4148,155.89,155.85,22.4566]
[1721140404873,0.17,155.88,155.84,6.4167]
[1721140405196,6.5852,155.88,155.83,12.9117]
[1721140405406,0.17,155.88,155.84,6.4166]
[1721140405571,0.34,155.88,155.84,6.4166]
[1721140405980,6.7552,155.88,155.84,6.4166]
[1721140406476,6.7552,155.88,155.83,6.4171]
[1721140406686,6.7552,155.88,155.84,6.4168]
[1721140406886,6.416,155.87,155.82,16.0436]
[1721140407084,0.34,155.86,155.82,16.0436]
[1721140407280,0.17,155.86,155.8,0.8428563]
[1721140407484,0.17,155.85,155.8,0.8428563]
[1721140407798,0.17,155.86,155.8,0.8428563]
[1721140407975,0.17,155.86,155.81,1.27957834]
[1721140408171,0.17,155.86,155.82,6.4175]
[1721140408615,0.34,155.86,155.81,16.0446]
[1721140408897,0.17,155.85,155.81,16.0446]
[1721140409080,6.4164,155.85,155.81,16.0446]
[1721140409274,0.17,155.84,155.81,16.0446]
[1721140409472,0.34,155.84,155.82,1.20445041]
[1721140409868,6.7569,155.84,155.8,0.8428563]
[1721140410287,0.34,155.84,155.8,0.8428563]
[1721140411207,6.4177,155.82,155.8,0.8428563]
[1721140411420,6.758,155.81,155.8,0.8428563]
[1721140414814,51.758,155.81,155.8,0.8428563]
[1721140415031,77.8031,155.81,155.8,0.8428563]
[1721140415331,16.0492,155.78,155.7,1.28416186]
[1721140415616,6.421,155.74,155.7,1.28416186]
[1721140415924,0.34,155.73,155.68,15.7672]
[1721140416096,0.34,155.73,155.65,23.2665563]
[1721140416534,0.34,155.73,155.67,16.0589]
[1721140416822,0.34,155.73,155.68,6.4231]
[1721140416823,6.7617,155.73,155.68,6.4231]
[1721140417209,0.34,155.73,155.67,22.4826]
[1721140417413,6.4222,155.71,155.67,16.0589]
[1721140417721,0.34,155.7,155.67,16.0589]
[1721140417930,0.34,155.7,155.67,22.4827]
[1721140418297,0.34,155.7,155.68,6.4232]
[1721140418924,0.34,155.71,155.69,6.4227]
[1721140419112,0.17,155.71,155.7,6.4226]
[1721140419322,0.17,155.71,155.7,1.28263128]
[1721140419825,28.8152,155.8,155.7,17.33873128]
[1721140420009,28.8152,155.8,155.71,1.2825489]
[1721140420203,6.4197,155.77,155.72,6.4214]
[1721140420401,6.4193,155.78,155.73,6.4213]
[1721140420608,6.6515,155.8,155.72,16.0538]
[1721140421108,6.4205,155.75,155.7,6.4222]
[1721140421624,6.5909,155.74,155.7,6.4222]
[1721140421924,0.17,155.74,155.71,1.28423882]
[1721140422098,6.4197,155.77,155.71,22.4766]
[1721140422299,6.7601,155.76,155.71,16.0548]
[1721140422504,0.34,155.76,155.73,6.4213]
[1721140422709,0.34,155.77,155.74,6.4208]
[1721140422927,0.17,155.76,155.75,6.4205]
[1721140423220,6.4185,155.8,155.76,6.4201]
[1721140423533,6.4196,155.78,155.73,16.0528]
[1721140423818,6.1171,155.83,155.73,16.0528]
[1721140424011,6.4205,155.75,155.7,16.0563]
[1721140424204,6.4205,155.75,155.7,22.4788]
[1721140424521,6.5911,155.74,155.7,16.0563]
[1721140424709,0.17,155.73,155.7,16.0563]
[1721140425703,0.17,155.73,155.7,22.4788]
[1721140426115,0.34,155.74,155.7,16.0563]
[1721140426423,45.0,155.82,155.71,45.0]
[1721140426626,0.34,155.81,155.7,45.0]
[1721140426920,6.4178,155.82,155.76,16.0498]
[1721140427105,6.4181,155.81,155.76,22.4695]
[1721140427305,6.4181,155.81,155.77,7.35075008]
[1721140427510,26.5027,155.85,155.73,16.0529]
[1721140427708,6.4192,155.79,155.75,6.4204]
[1721140427905,6.4181,155.81,155.76,6.4198]
[1721140428109,6.4181,155.81,155.75,16.0508]
[1721140428110,16.5027,155.85,155.75,16.0508]
[1721140428308,6.4192,155.79,155.75,16.0508]
[1721140428507,16.0428,155.84,155.75,16.0508]
[1721140428702,6.4174,155.83,155.78,16.048]
[1721140428918,6.4174,155.83,155.79,1.25710844]
[1721140429326,6.4169,155.84,155.8,1.25702775]
[1721140429519,6.4165,155.85,155.8,1.25702775]
[1721140429738,6.4169,155.84,155.8,7.67542775]
[1721140430018,6.4169,155.84,155.8,1.25702775]
[1721140430227,22.6515,155.9,155.83,6.417]
[1721140430400,22.6515,155.9,155.82,16.0436]
[1721140430603,22.6515,155.9,155.83,6.93791758]
[1721140430805,22.6515,155.9,155.82,22.4612]
[1721140431232,6.6155,155.9,155.83,6.4171]
[1721140431407,54.55053503,155.93,155.83,6.4171]
[1721140431607,54.55053503,155.93,155.82,16.0436]
[1721140431807,45.34,155.92,155.81,6.4179]
[1721140432525,10.0,155.91,155.79,16.0469]
[1721140432846,45.34,155.9,155.81,6.4179]
[1721140433029,0.17,155.89,155.81,6.4179]
[1721140433210,0.17,155.89,155.79,22.4654]
[1721140433537,6.4172,155.83,155.79,16.0469]
[1721140433707,0.17,155.82,155.8,1.28199284]
[1721140434126,0.17,155.82,155.79,16.0469]
[1721140434519,0.17,155.82,155.79,22.4656]
[1721140434825,0.17,155.82,155.8,7.7015457]
[1721140435209,0.17,155.82,155.79,22.4657]
[1721140435509,0.34,155.83,155.8,7.70183749]
[1721140436332,16.0374,155.89,155.81,16.0445]
[1721140436636,0.34,155.88,155.81,16.0445]
[1721140436939,0.34,155.88,155.79,6.4188]
[1721140436940,6.4169,155.84,155.79,6.4188]
[1721140437115,0.34,155.83,155.8,1.15567787]
[1721140437317,6.416,155.86,155.82,6.4176]
[1721140437636,0.34,155.85,155.82,6.4176]
[1721140437809,0.34,155.85,155.81,6.4179]
[1721140437810,6.7564,155.85,155.81,6.4179]
[1721140438007,0.34,155.85,155.83,6.4172]
[1721140438231,6.4156,155.87,155.84,1.28319337]
[1721140438535,16.0343,155.92,155.84,7.69999337]
[1721140438536,6.4152,155.88,155.84,7.69999337]
[1721140439032,6.4149,155.89,155.84,1.28319337]
[1721140439213,6.4145,155.9,155.84,17.32449337]
[1721140439418,6.4148,155.89,155.85,6.4163]
[1721140439617,6.4148,155.89,155.86,1.28299051]
[1721140439816,6.4143,155.9,155.86,1.28299051]